{"text_format":"3","workbook":"xlsx","n_sheets":2,"sheets":["ALGUS","EELARVETÖÖRIIST"],"not_rendered":{"defined_names":2},"read":"whole","date_system":"1900"}

{"sheet":"ALGUS","index":0,"n_rows":7,"n_cols":2,"rows_kept":7}
[null,"TEAVE SELLE MALLI KOHTA"]
[null,"Selle Veebisaidieelarve tööriist abil saate jälgida veebisaidi arendusse tehtud algset investeeringut, eelised ja kulud."]
[null,"Sisestage ettevõtte nimi ja kuupäev."]
[null,"Kokkuvõtted ja hindamismõõdikud automaatseks arvutamiseks sisestage tabelitesse üksikasjalik teave."]
[null,"Märkus.  "]
[null,"Töölehe EELARVETÖÖRIIST veerus A on toodud lisajuhised. See tekst on tahtlikult peidetud. Teksti eemaldamiseks valige veerg A ja seejärel käsk KUSTUTA. Teksti kuvamiseks valige veerg A ja muutke seejärel fondi värvi."]
[null,"Töölehe tabelite kohta lisateabe saamiseks vajutage tabelis tõstuklahvi (SHIFT) koos klahviga F10, valige käsk TABEL ja seejärel valige käsk ASETEKST."]

{"sheet":"EELARVETÖÖRIIST","index":1,"n_rows":43,"n_cols":6,"rows_kept":43,"merged":[[14,1,14,5],[22,1,22,5],[30,1,30,5],[38,1,38,5]]}
["Sellel töölehel saate koostada veebisaidi eelarve. Töölehe kasutamise kohta käivad kasulikud juhised leiate selle veeru lahtritest. Alustamiseks liikuge noolega alla."]
["Paremal asuvasse lahtrisse sisestage ettevõtte nimi.","Ettevõtte nimi"]
["Paremal olevas lahtris on selle töölehe pealkiri.","Veebisaidieelarve tööriist"]
["Parempoolsesse lahtrisse sisestage kuupäev.","Kuupäev"]
["Näpunäited on paremal asuvas lahtris.","Hallides lahtrites on arvutused, mida ei tohiks muuta."]
["Sisestage üksikasjad parempoolsest lahtrist algavasse tabelisse Määr. Järgmine juhis on lahtris A10.","Ettevõtte andmed","Määr"]
[null,"Nõutav tasuvusmäär",{"v":0.1,"d":"10%"}]
[null,"Maksumäär",{"v":0.3,"d":"30%"}]
[]
["Sisestage üksikasjad parempoolsest lahtrist algavasse tabelisse Algne investeering. Järgmine juhis on lahtris A16.","Veebisaiti tehtud algne investeering","AASTA","1","2","3"]
[null,"Riistvara (nt serverid)",{"v":25000,"d":"25,000.00 €"}]
[null,"Tarkvara (nt e-kaubanduse kataloogi tarkvara)",{"v":15000,"d":"15,000.00 €"}]
[null,"Arendus (nt kolmanda osapoole tehtud saidikujundus ja -arendus)",{"v":150000,"d":"150,000.00 €"}]
[null,"Esialgsed investeeringud kokku",{"$f":"SUBTOTAL(109,AlgneInvesteering[AASTA])","v":{"v":190000,"d":"190,000.00 €"}}]
[]
["Sisestage üksikasjad parempoolsest lahtrist algavasse tabelisse Eelised. Järgmine juhis on lahtris A24.","Veebisaidi eelised","AASTA","1","2","3"]
[null,"Otsemüük",null,{"v":15000,"d":"15,000.00 €"},{"v":50000,"d":"50,000.00 €"},{"v":75000,"d":"75,000.00 €"}]
[null,"Astmeline müük, mis tuleneb kampaaniate/müügiesindajate töö tõhustamisest",null,{"v":25000,"d":"25,000.00 €"},{"v":25000,"d":"25,000.00 €"},{"v":25000,"d":"25,000.00 €"}]
[null,"Astmeline müük, mis tuleneb partnerite suuremast osalusest",null,{"v":25000,"d":"25,000.00 €"},{"v":25000,"d":"25,000.00 €"},{"v":25000,"d":"25,000.00 €"}]
[null,"Väiksemad reisikulud",null,{"v":25000,"d":"25,000.00 €"},{"v":25000,"d":"25,000.00 €"},{"v":25000,"d":"25,000.00 €"}]
[null,"Väiksemad klienditeeninduskulud",null,{"v":50000,"d":"50,000.00 €"},{"v":50000,"d":"50,000.00 €"},{"v":50000,"d":"50,000.00 €"}]
[null,"Eelised kokku",null,{"$f":"SUBTOTAL(109,Eelised[1])","v":{"v":140000,"d":"140,000.00 €"}},{"$f":"SUBTOTAL(109,Eelised[2])","v":{"v":175000,"d":"175,000.00 €"}},{"$f":"SUBTOTAL(109,Eelised[3])","v":{"v":200000,"d":"200,000.00 €"}}]
[]
["Sisestage üksikasjad parempoolsest lahtrist algavasse tabelisse Kulud. Väärtused arvutatakse valemeid sisaldavates lahtrites automaatselt. Järgmine juhis on lahtris A32.","Kulud (v.a esialgsed kapitaliinvesteeringud)","AASTA","1","2","3"]
[null,"Müügikulu",null,{"v":7500,"d":"7,500.00 €"},{"v":25000,"d":"25,000.00 €"},{"v":37500,"d":"37,500.00 €"}]
[null,"Hooldus",null,{"v":15000,"d":"15,000.00 €"},{"v":15000,"d":"15,000.00 €"},{"v":15000,"d":"15,000.00 €"}]
[null,"Projektijuhtimine, klienditugi",null,{"v":35000,"d":"35,000.00 €"},{"v":35000,"d":"35,000.00 €"},{"v":35000,"d":"35,000.00 €"}]
[null,"Veebireklaamid, otsimootorites registreerumine",null,{"v":10000,"d":"10,000.00 €"},{"v":10000,"d":"10,000.00 €"},{"v":10000,"d":"10,000.00 €"}]
[null,"Kapitalikulude amortisatsioon (arvutuses kasutatakse kolmeaastast perioodi)",null,{"$f":"AlgneInvesteering[[#Totals],[AASTA]]/3","v":{"v":63333.333333333336,"d":"63,333.33 €"}},{"$f":"AlgneInvesteering[[#Totals],[AASTA]]/3","v":{"v":63333.333333333336,"d":"63,333.33 €"}},{"$f":"AlgneInvesteering[[#Totals],[AASTA]]/3","v":{"v":63333.333333333336,"d":"63,333.33 €"}}]
[null,"Kogukulud",null,{"$f":"SUBTOTAL(109,Kulud[1])","v":{"v":130833.33333333334,"d":"130,833.33 €"}},{"$f":"SUBTOTAL(109,Kulud[2])","v":{"v":148333.33333333334,"d":"148,333.33 €"}},{"$f":"SUBTOTAL(109,Kulud[3])","v":{"v":160833.33333333334,"d":"160,833.33 €"}}]
[]
["Väärtused arvutatakse parempoolsest lahtrist algavas tabelis Kokkuvõtted automaatselt. Järgmine juhis on lahtris A40.","Kokkuvõtted","AASTA","1","2","3"]
[null,"Puhaseelised (kulud)",null,{"$f":"Eelised[[#Totals],[1]]-Kulud[[#Totals],[1]]","v":{"v":9166.666666666657,"d":"9,166.67 €"}},{"$f":"Eelised[[#Totals],[2]]-Kulud[[#Totals],[2]]","v":{"v":26666.666666666657,"d":"26,666.67 €"}},{"$f":"Eelised[[#Totals],[3]]-Kulud[[#Totals],[3]]","v":{"v":39166.66666666666,"d":"39,166.67 €"}}]
[null,"Maksud",null,{"$f":"D33*Maksumäär","v":{"v":2749.999999999997,"d":"2,750.00 €"}},{"$f":"E33*Maksumäär","v":{"v":7999.999999999996,"d":"8,000.00 €"}},{"$f":"F33*Maksumäär","v":{"v":11749.999999999996,"d":"11,750.00 €"}}]
[null,"Väärtus pärast makse",null,{"$f":"D33-D34","v":{"v":6416.666666666661,"d":"6,416.67 €"}},{"v":18666.66666666666,"d":"18,666.67 €"},{"v":27416.66666666666,"d":"27,416.67 €"}]
[null,"Tagasi lisatud amortisatsioon",null,{"$f":"D29","v":{"v":63333.333333333336,"d":"63,333.33 €"}},{"$f":"E29","v":{"v":63333.333333333336,"d":"63,333.33 €"}},{"$f":"F29","v":{"v":63333.333333333336,"d":"63,333.33 €"}}]
[null,"Rahavoog",{"$f":"-AlgneInvesteering[[#Totals],[AASTA]]","v":{"v":-190000,"d":"-190,000.00 €"}},{"$f":"D35+D36","v":{"v":69750,"d":"69,750.00 €"}},{"v":82000,"d":"82,000.00 €"},{"v":90750,"d":"90,750.00 €"}]
[null,"Kumulatiivne rahavoog",{"$f":"C37","v":{"v":-190000,"d":"-190,000.00 €"}},{"$f":"C38+D37","v":{"v":-120250,"d":"-120,250.00 €"}},{"v":-38250,"d":"-38,250.00 €"},{"v":52500,"d":"52,500.00 €"}]
[]
["Hindamismõõdikud arvutatakse parempoolsest lahtrist algavas tabelis Mõõdikud automaatselt.","Hindamismõõdikud","Väärtused"]
[null,"Praegune netoväärtus (NPV)",{"$f":"C37+(NPV(TASUVUSMÄÄR,D37:F37))","v":{"v":9359.504132231377,"d":"9,359.50 €"}}]
[null,"Sisemine tasuvusmäär (IRR)",{"$f":"IRR(C37:F37)","v":{"v":0.12655165144706393,"d":"12.66%"}}]
[null,"Tagasimakseperiood (aastates)",{"$f":"IF(F38<=0,\"Rohkem kui 3 aastat\",IF(E38<=0,(F37-F38)/F37+2,IF(D38<=0,(E37-E38)/E37+1,IF(C38<=0,(D37-D38)/D37,\"P/S\"))))","v":{"v":2.4214876033057853,"d":"2.42"}}]